Cogmind - Beta 17 @@@ ROGUE MODE // 2026.07.27 @ 15:28:48 Player: gortmind Result: Destroyed by G-47 Trooper with Particle Gun Performance ------------- Evolutions (2) 1000 Regions Visited (3) 600 Robots Destroyed (63) 315 Value Destroyed (1832) 1832 Prototype IDs (9) 180 Alien Tech Used (0) 0 Bonus (0) 0 TOTAL SCORE: 3927 Bonus ------- None Cogmind --------- Core Integrity 0/550 Matter 264/300 Energy 160/160 System Corruption 4% Temperature Cool (9) Movement Treading (320) Ox2 Location -8/Materials Parts ------- > --- POWER (1) -------- Light Nuclear Core > --- PROPULSION (3) --- Light Treads > --- UTILITY (4) ------ High-capacity Storage Unit > --- WEAPON (3) ------- (None) > --- INVENTORY (20) --- Improved Heat Sink Improved Heat Sink Improved Terrain Scanner Improved Medium Armor Plating Peak State ------------ > --- POWER ------------ Reinforced Deuterium Engine > --- PROPULSION ------- Light Treads Light Treads Improved Titanium Leg > --- UTILITY ---------- High-capacity Storage Unit Active Sensor Suite > --- WEAPON ----------- Heavy Particle Gun Assault Rifle Assault Rifle > --- INVENTORY -------- Improved Heat Sink Improved Heat Sink Improved Medium Armor Plating [Rating: 45] Favorites ----------- Power Light Ion Engine Engine Light Ion Engine Power Core Light Nuclear Core Propulsion Light Treads Treads Light Treads Leg Improved Titanium Leg Utility Large Storage Unit Device Improved Heat Sink Storage Large Storage Unit Protection Weapon Shielding Weapon Assault Rifle Energy Gun Improved Medium Laser Energy Cannon Heavy Particle Cannon Ballistic Gun Assault Rifle Ballistic Cannon Light Cannon Launcher Advanced EMP Blaster Build | -11 -10 -9 -8 ------- Run | Yrd Mat Mat Mat Slots Evolved 4 | . . 2 2 Power . | . . . . Propulsion 1 | . . . 1 Utility 2 | . . 1 1 Weapon 1 | . . 1 . Parts Attached 51 | 5 8 12 26 Power 5 | 1 1 1 2 Engine 3 | 1 . 1 1 Core 2 | . 1 . 1 Reactor . | . . . . Propulsion 14 | 2 . 4 8 Treads 11 | 2 . 4 5 Leg 3 | . . . 3 Wheel . | . . . . Hover . | . . . . Flight . | . . . . Utility 17 | . 4 3 10 Device 9 | . 1 3 5 Storage 2 | . 2 . . Processor . | . . . . Hackware . | . . . . Protection 6 | . 1 . 5 Artifact . | . . . . Weapon 15 | 2 3 4 6 Energy Gun 3 | . . 1 2 Energy Cannon 4 | . . 3 1 Ballistic Gun 5 | 2 1 . 2 Ballistic Cannon 2 | . 2 . . Launcher 1 | . . . 1 Special Weapon . | . . . . Impact Weapon . | . . . . Slashing Weapon . | . . . . Piercing Weapon . | . . . . Special Melee Weapon . | . . . . Unidentified Prototypes 7 | . . 2 5 Parts Lost 25 | . . 2 23 Power 2 | . . . 2 Propulsion 8 | . . 1 7 Utility 6 | . . 1 5 Weapon 9 | . . . 9 Highest Loss Streak 6 | . . 1 6 To Critical Strikes . | . . . . Average Backups 4 | . 3 8 10 Power . | . . . . Propulsion . | . . . . Utility 2 | . 1 3 6 Weapon 1 | . 1 3 3 Tool/Special . | . . . . Unused Backups 1 | . . . 1 Power . | . . . . Propulsion . | . . . . Utility 1 | . . . 1 Weapon . | . . . . Tool/Special . | . . . . Average Slot Usage (%) 87 | . 93 92 75 Engine 7 | . 10 5 7 Core 3 | . 3 5 . Treads 21 | . 28 21 13 Leg 1 | . . . 3 Device 11 | . 4 15 14 Storage 9 | . 8 11 8 Protection 5 | . 8 . 6 Energy Gun 2 | . . 1 6 Energy Cannon 8 | . . 15 9 Ballistic Gun 7 | . 13 5 3 Ballistic Cannon 8 | . 14 10 . Peak Build Rating 45 | 5 9 23 45 Average Rating 12 | 4 7 16 27 On Entrance 8 | . 5 9 21 Avg Prop Armor Cover (%) 5 | . . . 5 Naked Turns . | . . . . Heaviest Build 71 | 6 46 48 71 Greatest Support 63 | 40 40 52 63 Greatest Overweight (x) 17 | 1 1 1 17 Average Overweight (x) . | . . . 1 Largest Inventory Capacity 20 | 5 20 20 20 Average Capacity 10 | 5 11 15 15 Most Carried 15 | 2 6 14 15 Average Carried 4 | . 3 8 10 Final Capacity 20 | 5 15 15 20 Final Carried 14 | . 5 14 4 Class Distribution -------------------- 66% | Mutant 20% | Gunner 4% | Tank 4% | Scavenger-Mutant 3% | Skirmisher Dominant Class ---------------- Mutant | -10/Materials Gunner | -9/Materials Mutant | -8/Materials Resources | -11 -10 -9 -8 ----------- Run | Yrd Mat Mat Mat Matter Collected 1413 | 188 280 292 653 Remotely . | . . . . Salvage Created 2248 | . 369 567 1312 Parts 132 | . 27 51 54 Haulers Intercepted 4 | . 1 . 3 Recyclers Shooed 1 | . . . 1 Parts Field Recycled . | . . . . Retrieved Matter . | . . . . Parts Self-Destructed . | . . . . Prevented . | . . . . Parts Restored . | . . . . Kills | -11 -10 -9 -8 ------- Run | Yrd Mat Mat Mat Combat Hostiles Destroyed 47 | . 10 17 20 Guns 16 | . 4 3 9 Cannons 29 | . 6 14 9 AOE 1 | . . . 1 Classes Destroyed 11 | . 6 1 4 Worker 5 | . 1 . 4 Tunneler 1 | . . . 1 Hauler 4 | . 1 . 3 Recycler 1 | . 1 . . Watcher 5 | . 1 3 1 Swarmer 12 | . 5 7 . Grunt 25 | . 5 5 15 Sentry 7 | . . 5 2 Specialist 1 | . . . 1 Hunter 1 | . . . 1 Heavy 1 | . . . 1 Best Kill Streak 6 | . 5 4 6 Combat Bots Only 4 | . 3 3 4 Max Kills in Single Turn 1 | . 1 1 1 Gunslinging . | . . . . Exploded 1 | . . . 1 Melee . | . . . . Uniques/NPCs Destroyed . | . . . . Combat | -11 -10 -9 -8 -------- Run | Yrd Mat Mat Mat Hostile Shots Fired 475 | . 59 126 290 Missed 120 | . 13 29 78 Hits 355 | . 46 97 212 Projectile 355 | . 46 97 212 Critical Strikes 19 | . 1 2 16 Damage Taken 5245 | . 430 936 3879 Core 762 | . 70 125 567 Absorbed by Shields . | . . . . Redirected to Shielding 51 | . 27 24 . Regen/Repaired (Parts) 292 | . . 78 214 Core Remaining (%) 80 | 100 72 68 . Volleys Fired 195 | . 38 40 117 Largest 3 | . 2 3 3 Hottest 225 | . 60 225 206 Shots Fired 378 | . 76 120 182 Gun 150 | . 27 23 100 Cannon 225 | . 49 97 79 Launcher 3 | . . . 3 Special . | . . . . Kinetic 197 | . 76 63 58 Thermal 178 | . . 57 121 Explosive . | . . . . Electromagnetic 3 | . . . 3 Robot Hit Streak 16 | . 8 6 16 Robot Miss Streak 6 | . 6 5 5 Penetration Max . | . . . . Secondary Targets 2 | . 1 . 1 Max Gunslinging Chain 1 | . 1 . 1 Shots Hit Robots 217 | . 38 52 127 Core Hits 96 | . 18 24 54 Critical Kills . | . . . . Critical Parts Destroyed . | . . . . Critical Strikes 3 | . . 1 2 Burn 2 | . . . 2 Blast 1 | . . 1 . Melee Attacks . | . . . . Impact . | . . . . Slashing . | . . . . Piercing . | . . . . Sneak Attacks . | . . . . Combat Hostiles . | . . . . Follow-up Attacks . | . . . . Damage Inflicted 4522 | . 622 1073 2827 Guns 1662 | . 204 170 1288 Cannons 2655 | . 415 897 1343 Explosions 163 | . . . 163 Melee . | . . . . Ramming 42 | . 3 6 33 Kinetic 1890 | . 619 509 762 Thermal 2427 | . . 558 1869 Explosive . | . . . . Electromagnetic 163 | . . . 163 Impact . | . . . . Slashing . | . . . . Piercing . | . . . . Highest Corruption 4 | . . . 4 Average Corruption 3 | . . . 3 Corruption Purged . | . . . . Corruption Blocked . | . . . . Effects 11 | . . . 11 Message Errors 2 | . . . 2 Matter Fused 1 | . . . 1 Energy Discharges 2 | . . . 2 Parts Rejected 3 | . . . 3 Data Loss (minor) 1 | . . . 1 Data Loss (major) 1 | . . . 1 Weapon Failures 1 | . . . 1 Overload Shots . | . . . . Overflow Damage 28 | . . 5 23 Projectiles 28 | . . 5 23 Explosions . | . . . . Melee . | . . . . Knockbacks 11 | . 4 6 1 Impact 1 | . . . 1 Kinetic 10 | . 4 6 . Secondary . | . . . . Self-Inflicted Damage 14 | . . . 14 Shots 1 | . . . 1 Rammed 6 | . 1 2 3 Targets Rammed 7 | . 1 2 4 Kicked . | . . . . Crushed 1 | . . . 1 Highest Temperature 617 | . 66 601 617 Average Temperature 142 | . 22 154 162 Received Heat Transfer 2076 | . 120 174 1782 Effects 28 | . . 10 18 Shutdowns 4 | . . 3 1 Energy Bleed 6 | . . 1 5 Interference 9 | . . 3 6 Matter Decay 2 | . . 2 . Short Circuit 1 | . . . 1 Damage (minor) 4 | . . 1 3 Damage (major) 2 | . . . 2 Siege Activations . | . . . . Martial Activations . | . . . . Shielding Activations . | . . . . Robots Disrupted . | . . . . Combat Hostiles . | . . . . Robots Corrupted . | . . . . Combat Hostiles . | . . . . Parts Fried . | . . . . Impact Corruptions . | . . . . Robots Melted 1 | . . . 1 Combat Hostiles 1 | . . . 1 Parts Melted 5 | . . 1 4 Heat Transferred 4181 | . . 851 3330 Parts Sabotaged . | . . . . Parts Stolen . | . . . . Parts Stripped . | . . . . Power Chain Reactions . | . . . . Alert | -11 -10 -9 -8 ------- Run | Yrd Mat Mat Mat Maximum Alert Level . | . . . . Low Security (%) 100 | 100 100 100 100 Level 1 . | . . . . Level 2 . | . . . . Level 3 . | . . . . Level 4 . | . . . . Level 5 . | . . . . High Security . | . . . . Max Security . | . . . . Peak Influence 177 | . 85 177 136 Initial 66 | . . 10 66 Average 32 | . 31 81 50 Influence Increases 1606 | . 310 584 712 Destroy 0b10 Robot/C 940 | . 200 340 400 Destroy 0b10 Robot/NC 80 | . 20 15 45 Destroy Leader 208 | . 44 96 68 Successful Hack 47 | . 15 27 5 Disable Machine 45 | . . 45 . Destroy Structure 51 | . 1 31 19 Partial Spotted 15 | . 15 . . Lose Combat Pursuer 120 | . 15 30 75 Active Sensor Use 100 | . . . 100 Influence Decreases 1486 | . 284 452 750 Entered New Map 108 | . . 16 92 Time Decay 1128 | . 284 416 428 Lost Part 250 | . . 20 230 Squads Dispatched 7 | . 2 1 4 Investigation 3 | . 1 1 1 Extermination . | . . . . Reinforcement 4 | . 1 . 3 Assault . | . . . . Garrison . | . . . . Intercept . | . . . . Searches Triggered . | . . . . Construction Impeded 1 | . . . 1 Haulers Reinforced . | . . . . Active Scanning Responses 1 | . . . 1 Cargo Convoy Interrupts . | . . . . Stealth | -11 -10 -9 -8 --------- Run | Yrd Mat Mat Mat Distress Signals 5 | . 1 3 1 Communications Jammed . | . . . . Distress Signals . | . . . . Times Spotted 73 | . 17 27 29 Peak Tracking Total 6 | . 3 5 6 Tactical Retreats 7 | . 1 2 4 Traps | -11 -10 -9 -8 ------- Run | Yrd Mat Mat Mat Traps Triggered 2 | . . . 2 Indirectly . | . . . . Trap Hack Attempts . | . . . . Triggered . | . . . . Disarmed . | . . . . Reprogrammed . | . . . . Reused . | . . . . Traps Extracted . | . . . . Installed . | . . . . Triggered . | . . . . Machines | -11 -10 -9 -8 ---------- Run | Yrd Mat Mat Mat Machines Disabled 3 | . . 3 . Max in Single Turn 1 | . . 1 . Machines Repaired . | . . . . Machines Dismantled . | . . . . Machines Sabotaged . | . . . . Overloaded Fab Kills . | . . . . Hacking | -11 -10 -9 -8 --------- Run | Yrd Mat Mat Mat Machines Accessed 16 | . 9 6 1 Terminals 11 | . 7 4 . Fabricators . | . . . . Repair Stations 2 | . . 1 1 Recycling Units 2 | . 2 . . Scanalyzers 1 | . . 1 . Garrison Access . | . . . . Total Hacks 48 | . 27 15 6 Successful 32 | . 15 13 4 Failed 16 | . 12 2 2 Catastrophic . | . . . . Database Lockouts . | . . . . Manual . | . . . . Terminals 28 | . 19 9 . Fabricators . | . . . . Repair Stations 8 | . . 2 6 Recycling Units 8 | . 8 . . Scanalyzers 4 | . . 4 . Garrison Access . | . . . . Terminal Hacks 17 | . 10 7 . Record 2 | . . 2 . Prototype ID Bank 1 | . 1 . . Emergency Access Points 3 | . 1 2 . Locate Traps 4 | . 3 1 . Transport Status 1 | . 1 . . Hauler Manifests 2 | . 1 1 . Registered Components 1 | . 1 . . Zone Layout 3 | . 2 1 . Fabricator Hacks . | . . . . Repair Station Hacks 6 | . . 2 4 Scan Component 3 | . . 1 2 Repair 3 | . . 1 2 Recycling Unit Hacks 5 | . 5 . . Process 1 | . 1 . . Report Inventory 3 | . 3 . . Retrieve Matter 1 | . 1 . . Scanalyzer 4 | . . 4 . Insert Component 1 | . . 1 . Analyze 1 | . . 1 . Retrieve Study 2 | . . 2 . Garrison Access Hacks . | . . . . Unauthorized Hacks . | . . . . Terminals . | . . . . Fabricators . | . . . . Repair Stations . | . . . . Recycling Units . | . . . . Scanalyzers . | . . . . Garrison Access . | . . . . Data Cores Recovered . | . . . . Used . | . . . . Hacking Detections 11 | . 6 4 1 Full Trace Events 3 | . 2 1 . Feedback Events . | . . . . Feedback Blocked . | . . . . Robot Schematics Acquired . | . . . . Robots Built . | . . . . Authchips . | . . . . Time . | . . . . Total Robot Build Rating . | . . . . Part Schematics Acquired 1 | . . 1 . Parts Built . | . . . . Authchips . | . . . . Time . | . . . . Total Part Build Rating . | . . . . Part Studies Acquired 1 | . . 1 . Parts Repaired 3 | . . 1 2 Time 96 | . . 26 70 Parts Recycled . | . . . . Recycled Matter 128 | . 128 . . Retrieved Matter 272 | . 272 . . Retrieved Components . | . . . . Parts Scanalyzed 1 | . . 1 . Part Schematics Acquired 1 | . . 1 . Parts Damaged . | . . . . Bothacking | -11 -10 -9 -8 ------------ Run | Yrd Mat Mat Mat Used RIF Installer . | . . . . Robots Hacked . | . . . . Non-combat . | . . . . Combat . | . . . . Robot Hacks Applied . | . . . . Relay Couplers Released . | . . . . Fabnet Peak Effective % . | . . . . Robots Rewired . | . . . . Allies Hacked . | . . . . Hacks Repelled . | . . . . Allies | -11 -10 -9 -8 -------- Run | Yrd Mat Mat Mat Total Allies . | . . . . Largest Group . | . . . . Highest-Rated Group . | . . . . Highest-Rated Ally . | . . . . Total Orders . | . . . . Ally Attacks . | . . . . Total Damage . | . . . . Kills . | . . . . Allies Corrupted . | . . . . Allies Melted . | . . . . Intel | -11 -10 -9 -8 ------- Run | Yrd Mat Mat Mat Active Infowar (turns) 696 | . 365 72 259 A.S.S. 259 | . . . 259 Terrain 72 | . . 72 . Seismic 365 | . 365 . . Robot Analysis Total . | . . . . Derelict Logs Recovered . | . . . . Drone Launches . | . . . . Drone Recoveries . | . . . . Exploration | -11 -10 -9 -8 ------------- Run | Yrd Mat Mat Mat Turns Passed 5381 | 2177 1111 1004 1089 Spaces Moved 1983 | 735 499 489 260 Core 23 | 16 . . 7 Treads 1923 | 719 499 489 216 Legs 37 | . . . 37 Wheels . | . . . . Hover . | . . . . Flight . | . . . . Fastest Speed 50 | 50 160 160 130 Average Speed 168 | 157 160 161 231 Slowest Speed 900 | 160 240 200 900 Overloaded Moves . | . . . . Propulsion Burnouts . | . . . . Robots Hopped . | . . . . Potential Cave-ins . | . . . . Cave-ins Triggered . | . . . . Exploration Rate (%) 47 | 45 70 43 30 Regions Visited 3 Branch Regions . Pre-discovered Areas . | . . . . Known Exits Taken . | . . . . Unknown Exits Taken 3 | 1 1 1 . Scrap Searched . | . . . . Spaces Dug . | . . . . Terrain Destroyed 47 | . . 29 18 Melee . | . . . . Projectile 47 | . . 29 18 AOE . | . . . . Terrain Rammed . | . . . . Walls Destroyed . | . . . . Machines Disabled . | . . . . Actions | -11 -10 -9 -8 --------- Run | Yrd Mat Mat Mat Total 3668 | 1752 735 608 573 Wait 1341 | 1008 180 41 112 Move 1980 | 734 498 488 260 Hop . | . . . . Pick Up 58 | 5 8 16 29 Fast Attach . | . . . . Attach 41 | 5 3 6 27 Detach 5 | . 1 1 3 Swap 27 | . 5 12 10 Drop 14 | . 1 2 11 Fire 195 | . 38 40 117 Melee . | . . . . Ram . | . . . . Kick . | . . . . Crush 7 | . 1 2 4 Escape Stasis . | . . . . Rewire . | . . . . Trap . | . . . . Miscellaneous . | . . . . Route ------- -11/Scrapyard -10/Materials (discovered 2 exits: *Mat x2) -9/Materials -8/Materials History --------- Turn | Location | Event 9 | -11/Scrapyard | Discovered new exit (range 15) 2178 | -11/Scrapyard | Entered Materials 2179 | -10/Materials | Build established: Mutant 2713 | -10/Materials | Discovered new exit (range 8) 3033 | -10/Materials | Discovered new exit (range 5) 3289 | -10/Materials | Entered another Materials area 3289 | -9/Materials | Evolved 2 slots: Utility x1, Weapon x1 3483 | -9/Materials | Repaired Lgt. Cannon 3884 | -9/Materials | Discovered new exit (range 15) 4156 | -9/Materials | Build established: Gunner 4293 | -9/Materials | Entered another Materials area 4293 | -8/Materials | Evolved 2 slots: Propulsion x1, Utility x1 4360 | -8/Materials | Repaired Imp. Treads+ 4400 | -8/Materials | Repaired Hvy. Particle Cannon 4680 | -8/Materials | Lost 4 parts (2u2w) 5001 | -8/Materials | Lost 3 parts (1p1u1w) 5066 | -8/Materials | Core integrity fell below 50% 5100 | -8/Materials | Lost 5 parts (1n1u3w) 5115 | -8/Materials | Found Prototype Device 5120 | -8/Materials | Identified Active Sensor Suite 5175 | -8/Materials | Core integrity fell below 20% 5218 | -8/Materials | Lost 6 parts (1p3n2w) 5382 | -8/Materials | Destroyed by G-47 Trooper with Particle Gun Last Messages --------------- 05357_ Aluminum Leg melted. 05357_ G-47 Trooper destroyed. 05358_ U-05 Engineer lays Concrete. 05361_ PPR 8ULQZGY5SOJZNUE>BIB1T L Z45 05361_ R-06 Scavenger collects Corrupted Weight Redist. System. 05362_ U-05 Engineer lays Concrete. 05363_ U-05 Engineer repairs door. 05364_ U-05 Engineer lays Concrete. 05369_ R-06 Scavenger collects Corrupted Aluminum Leg. 05369_ U-05 Engineer lays Concrete. 05373_ R-06 Scavenger collects Corrupted Wheel. 05377_ U-05 Engineer builds a Door. 05377_ Acquired Lgt. Treads. 05379_ Active Sensor Suite destroyed. 05381_ System corrupted: Adv. Beam Cannon rejected. 05381_ U-05 Engineer repairs door. Map ----- +----------------------------------------------------+ | ?????????????????????????????????????????????????? | | ?????????????????????????????????????????????????? | | ?????????????????????????????????????????????????? | | ?????????????????????????????????????????????????? | | ?????????????????????????????????????????????????? | | ?????????????????????????????????????????????????? | | ?????????????????????????????????????????????????? | | ?????????????????????????????????????????????????? | | ?????????????????????????????????????????????????? | | ?????????????????????????????????????????????????? | | ?????????????????????????????????????????????????? | | ?????????????????????????????????????????????????? | | ?????????????????????????????????????????????????? | | ?????????????????????????????????????#####???????? | | ?????????????????????????#####??????? #??????? | | ????????????????????????# ??????? ???????? | | ????????????????????????# ??????? ???????? | | ????????????????????????# ??????? ???????? | | ????????????????????????? ??????? ????????? | | ????????????????????????? ?????? ????????? | | ?????????????????????????? ??#??? ????????? | | ??????????????????????????? ? #??? ?????????? | | ???????????????????????????? #??? ?????????? | | ????????????????#???????????? #?###+###???????? | | ????????????????# ##########/#/### ######### | | ????????????????# @ u% u | | ????????????????# !g%*g | | ????????????????# % [ k | | ????????????????# #######+##### [ ###+#???? | | ????????????????# ?????? [??##==[##???????? | | ????????????????# ??????? ?#=!%#????????? | | ????????????????# ???????Y [ ##!=*#????????? | | ????????????????# ????????" ##| =#????????? | | ????????????????# ???????? ##%==#????????? | | ???????????????? ????????? """ ##[%%#????????? | | ???????????????###????????# """ ##%==#????????? | | ??????????????????????????# """ ##![ #????????? | | ??????????????????????????# ? !##[* #????????? | | ???????????????????????????????######= *#????????? | | ????????????????????????????????????# !!#????????? | | ????????????????????????????????????#!%=#????????? | | ????????????????????????????????????#!*!#????????? | | ????????????????????????????????????#%%!#####????? | | ????????????????????????????????????#%= %*!!#????? | | ????????????????????????????????????# !!!#????? | | ????????? ????????????????###########%%% %=*#????? | | ????????? ????????????????# #% ! #????? | | ???????## #???????????????# """ """ # !#????? | | ??????? ########???????# """ """ + !!#????? | | ??????? # #???????# """ """ # #####????? | +----------------------------------------------------+ Best States ------------- Heat Dissipation 59 Coolant Potential 50 Energy Generation 16 Energy Capacity 290 Matter Stores 300 Matter Capacity 300 Sight Range 16 Robot Scan Range 20 Terrain Scan Range 16 Terrain Scan Density 10 Additional Mass Support 6 Armor Coverage 375 Weapon Shielding 33 Evasion (%) 50 Recoil Reduction 3 Particle Charging 15 Item Schematics ----------------- Hcp. Storage Unit | -9/Materials | Scanalyzed Robot Schematics ------------------ None Fabricated ------------ Nothing Repaired ---------- Lgt. Cannon | 35% | -9/Materials Imp. Treads | 17% | -8/Materials Hvy. Particle Cannon | 33% | -8/Materials Studied --------- Imp. Treads | -9/Materials | Hacked Alien Tech Used ----------------- None Achievements -------------- Heavy Suspicion I Spy Some Acronyms Are Better Than Others Challenges ------------ None Game ------ Seed ElectrostormBeamLink Manual? 0 Play Time 00:54:36 Cumulative 4.6 hours Start 2026.07.27 @ 14:32:42 End 2026.07.27 @ 15:28:48 Sessions 1 Manual Loads 0 Difficulty Rogue Special Mode None Game No. 6 Rogue 6 Adventurer 0 Explorer 0 Win Type - Total 0 Types 0/0/0/0/0/0/0/0/0/0 Lore% 5 Gallery% 7 Achievement% 8 Wizard Run 0 Options --------- Layout 1 ASCII 0 Keyboard 0 Movement Mouse Keybinds 0 Fullscreen 1 Font 48/Smallcaps Map View 50x35 Zoom Use 0% Tactical HUD 1 Map Filters NONE Filters NONE Steam 1 RUN: 00e3223d-e064-46d5-b8ac-0c418b4dda3f